bitfinex-derivatives/quotes_SOLF0:USTF0_20260108
["timestamp","ask_amount","ask_price","bid_price","bid_amount"]
[1767843346903,1.88317196,137.41,137.34,1.73487702]
[1767843349414,8.43997196,137.41,137.34,1.73487702]
[1767843352712,1.88317196,137.39,137.32,1.73487702]
[1767843354712,1.88317196,137.39,137.32,8.29567702]
[1767843357419,1.88317196,137.39,137.33,1.73487702]
[1767843362925,6.5573,137.4,137.33,1.73487702]
[1767843363241,6.5573,137.4,137.34,1.74456019]
[1767843363927,8.40754939,137.4,137.34,1.74456019]
[1767843364426,1.85024939,137.39,137.34,1.74456019]
[1767843366233,1.85024939,137.39,137.32,8.30566019]
[1767843366433,1.85024939,137.39,137.33,1.74456019]
[1767843371035,1.8823319,137.43,137.36,1.73739714]
[1767843372532,1.8823319,137.43,137.36,8.29629714]
[1767843372729,1.8823319,137.43,137.37,1.73739714]
[1767843376528,1.8823319,137.43,137.39,0.04992613]
[1767843380531,1.8823319,137.43,137.34,8.29709714]
[1767843380837,1.8823319,137.41,137.34,1.73739714]
[1767843381932,0.04782698,137.39,137.34,1.73739714]
[1767843384442,0.04782698,137.39,137.35,1.73739714]
[1767843386047,8.4390319,137.42,137.35,1.73739714]
[1767843386241,8.4390319,137.42,137.36,1.73739714]
[1767843390752,0.05485466,137.4,137.37,1.73739714]
[1767843390951,8.4380319,137.44,137.37,1.73739714]
[1767843391245,8.4380319,137.44,137.38,0.0470715]
[1767843393449,1.86554783,137.49,137.41,1.76989662]
[1767843394036,1.86554783,137.49,137.43,1.76989662]
[1767843394242,1.86554783,137.49,137.44,0.05455833]
[1767843396258,1.86554783,137.48,137.44,0.05455833]
[1767843401753,8.41924783,137.48,137.44,0.05455833]
[1767843403061,1.86554783,137.48,137.44,0.05455833]
[1767843405263,1.86554783,137.5,137.44,1.82445495]
[1767843406766,8.41804783,137.5,137.44,1.82445495]
[1767843411872,1.86554783,137.55,137.45,1.76989662]
[1767843412168,101.8469,137.61,137.45,1.76989662]
[1767843412169,1.86554783,137.57,137.49,1.76989662]
[1767843412361,1.86554783,137.62,137.51,1.76989662]
[1767843412563,1.86554783,137.62,137.52,1.76989662]
[1767843412762,1.86554783,137.62,137.52,1.82467928]
[1767843413165,1.86554783,137.62,137.52,1.76989662]
[1767843413481,1.86554783,137.62,137.56,0.04607322]
[1767843413670,1.86554783,137.61,137.56,0.04607322]
[1767843419275,1.86554783,137.63,137.56,1.81596984]
[1767843420069,1.86554783,137.63,137.57,1.76989662]
[1767843420272,1.86554783,137.67,137.57,1.76989662]
[1767843420669,1.86554783,137.67,137.59,1.76989662]
[1767843420873,1.86554783,137.66,137.59,1.76989662]
[1767843421275,1.86554783,137.66,137.62,0.0476635]
[1767843422674,1.86554783,137.66,137.57,94.4120803]
[1767843423080,1.86554783,137.66,137.58,1.8831803]
[1767843425982,1.79320213,137.65,137.58,1.8831803]
[1767843428474,1.79320213,137.64,137.56,85.96]
[1767843428674,1.79320213,137.64,137.56,87.8431803]
[1767843428872,1.79320213,137.64,137.54,8.4334803]
[1767843429078,1.79320213,137.64,137.54,1.8831803]
[1767843429277,101.8222,137.65,137.54,1.8831803]
[1767843429278,1.89385605,137.61,137.54,1.8831803]
[1767843429482,1.89385605,137.61,137.5,1.88351076]
[1767843430386,1.89385605,137.59,137.51,1.88351076]
[1767843433495,1.89385605,137.58,137.51,1.88351076]
[1767843435482,8.44265605,137.58,137.51,1.88351076]
[1767843435682,1.89385605,137.57,137.51,1.88351076]
[1767843440191,1.89385605,137.6,137.51,1.88351076]
[1767843440690,1.89385605,137.6,137.52,1.88351076]
[1767843441690,1.89385605,137.6,137.53,8.43431076]
[1767843441892,1.89385605,137.6,137.54,1.88351076]
[1767843445693,1.89385605,137.62,137.55,1.88351076]
[1767843446195,6.5461,137.64,137.56,6.5495]
[1767843446392,6.5461,137.64,137.57,1.88351076]
[1767843446898,8.43995605,137.64,137.57,1.88351076]
[1767843447402,1.89385605,137.64,137.58,1.88351076]
[1767843454307,1.89385605,137.64,137.57,6.5489]
[1767843454611,1.86279023,137.63,137.55,85.96]
[1767843454998,1.86279023,137.63,137.54,1.7894431]
[1767843455699,1.86279023,137.6,137.52,1.7894431]
[1767843456500,1.86279023,137.58,137.51,85.94]
[1767843456709,1.86279023,137.58,137.5,1.7894431]
[1767843457209,1.86279023,137.58,137.51,8.3413431]
[1767843457597,1.86279023,137.58,137.52,1.7894431]
[1767843461198,1.86279023,137.6,137.53,1.7894431]
[1767843462508,1.86279023,137.6,137.54,6.5505]
[1767843465109,8.40959023,137.62,137.55,1.7894431]
[1767843465609,1.86279023,137.61,137.55,1.7894431]
[1767843467505,10.21625688,137.61,137.55,1.7894431]
[1767843467904,8.41059023,137.6,137.53,1.7894431]
[1767843470313,1.85534699,137.59,137.53,1.7894431]
[1767843470508,1.85534699,137.59,137.52,92.5115]
[1767843471513,1.85534699,137.59,137.52,94.34899153]
[1767843474311,1.85534699,137.58,137.5,8.38949153]
[1767843475404,1.85534699,137.56,137.47,1.80616665]
[1767843475609,3.66151364,137.55,137.46,1.83749153]
[1767843476614,1.85534699,137.55,137.47,1.83749153]
[1767843477011,1.85534699,137.55,137.48,8.39079153]
[1767843477816,1.85534699,137.57,137.5,1.83749153]
[1767843481215,1.80616665,137.59,137.51,6.5519]
[1767843481419,8.40344699,137.6,137.52,1.83749153]
[1767843481619,8.40344699,137.6,137.53,1.83749153]
[1767843482016,1.85534699,137.6,137.53,1.83749153]
[1767843482221,8.40862901,137.62,137.53,1.83749153]
[1767843482422,1.86152901,137.62,137.53,1.83749153]
[1767843483722,8.40892901,137.61,137.53,8.38839153]
[1767843483922,8.40892901,137.61,137.54,1.85491473]
[1767843487528,1.86152901,137.6,137.54,1.85491473]
[1767843504035,1.88146153,137.57,137.5,1.85147294]
[1767843504626,8.43106153,137.56,137.5,1.85147294]
[1767843505438,6.5501,137.55,137.5,1.85147294]
[1767843508035,6.5495,137.57,137.5,1.85147294]
[1767843508242,1.88146153,137.58,137.51,1.85147294]
[1767843508440,1.88146153,137.6,137.52,1.85147294]
[1767843509640,1.88146153,137.59,137.53,6.551]
[1767843510345,1.88146153,137.59,137.52,1.85147294]
[1767843511634,1.88146153,137.59,137.52,8.40287294]
[1767843513047,1.80616665,137.61,137.52,1.85147294]
[1767843513048,1.75535542,137.58,137.52,1.85147294]
[1767843513253,1.75535542,137.58,137.5,8.41387857]
[1767843514544,8.30415542,137.58,137.5,8.41387857]
[1767843516453,8.30415542,137.58,137.51,1.86177857]
[1767843518151,1.75535542,137.57,137.51,1.86177857]
[1767843519950,1.75535542,137.56,137.49,1.86177857]
[1767843521554,6.5502,137.55,137.49,1.86177857]
[1767843521754,8.30555542,137.55,137.49,1.86177857]
[1767843521955,8.30555542,137.55,137.46,94.56489132]
[1767843521956,1.75535542,137.54,137.47,1.86177857]
[1767843522551,1.75535542,137.52,137.46,6.5539]
[1767843522959,1.75535542,137.52,137.45,1.86177857]
[1767843523659,8.30695542,137.52,137.45,8.41657857]
[1767843525063,1.75535542,137.54,137.47,1.86177857]
[1767843526563,1.75535542,137.54,137.48,6.5533]
[1767843531356,1.75535542,137.54,137.47,1.86177857]
[1767843531761,1.75535542,137.54,137.45,1.86177857]
[1767843533567,1.75535542,137.51,137.45,1.86177857]
[1767843534170,1.75535542,137.51,137.45,8.41657857]
[1767843540776,6.551,137.54,137.47,1.86177857]
[1767843540975,4.58028626,137.55,137.47,1.86177857]
[1767843540976,1.75535542,137.55,137.47,1.86177857]
[1767843542581,8.30555542,137.55,137.48,8.28832688]
[1767843543080,1.75535542,137.55,137.48,1.73492688]
[1767843545777,8.30545542,137.55,137.48,1.73492688]
[1767843546180,8.30545542,137.55,137.48,8.28832688]
[1767843546379,8.24462578,137.57,137.49,1.62816932]
[1767843547683,8.24462578,137.57,137.5,8.18056932]
[1767843549085,8.24462578,137.57,137.51,1.62816932]
[1767843555082,94.20228894,137.59,137.52,1.62816932]
[1767843555289,8.20228894,137.59,137.52,1.62816932]
[1767843555992,1.65368894,137.59,137.53,6.5509]
[1767843556288,1.65368894,137.59,137.53,8.17906932]
[1767843557793,1.65368894,137.59,137.51,1.62816932]
[1767843559592,8.16449008,137.57,137.51,1.62816932]
[1767843559792,1.60596749,137.56,137.49,8.18106932]
[1767843560594,8.15566749,137.56,137.5,1.62816932]
[1767843569991,8.06756884,137.58,137.51,1.62816932]
[1767843570391,6.5481,137.6,137.51,1.62816932]
[1767843570598,1.51846884,137.59,137.51,1.62816932]
[1767843571098,8.06666884,137.59,137.52,6.5513]
[1767843571303,1.51025507,137.58,137.52,6.5513]
[1767843572606,1.51025507,137.58,137.52,8.14842543]
[1767843573308,8.03658177,137.59,137.53,1.59712543]
[1767843578612,1.44996433,137.58,137.53,1.59712543]
[1767843583220,7.96177255,137.6,137.53,8.14802543]
[1767843583515,1.41367255,137.6,137.53,8.14802543]
[1767843584720,7.95486331,137.59,137.53,8.14802543]
[1767843585110,101.8347,137.63,137.53,8.14802543]
[1767843585111,1.39973491,137.61,137.54,1.59712543]
[1767843585516,1.39973491,137.6,137.54,8.14762543]
[1767843586311,1.39973491,137.6,137.55,1.59712543]
[1767843586517,1.39973491,137.6,137.55,8.14722543]
[1767843587821,1.39973491,137.6,137.55,1.59712543]
[1767843588017,1.39973491,137.6,137.53,8.14782543]
[1767843589821,1.39973491,137.6,137.54,1.59712543]
[1767843590024,1.36626096,137.62,137.55,1.59712543]
[1767843591225,1.36626096,137.62,137.56,1.59712543]
[1767843592023,7.91306096,137.62,137.56,1.59712543]
[1767843592220,1.35338986,137.61,137.56,1.59712543]
[1767843595931,1.328523,137.6,137.54,8.14762543]
[1767843599839,1.328523,137.6,137.55,1.59712543]
[1767843601641,1.29901405,137.62,137.55,8.14712543]
[1767843602630,7.84581405,137.62,137.55,8.14712543]
[1767843603930,7.84581405,137.62,137.56,1.35561515]
[1767843613543,1.22209199,137.65,137.57,1.35561515]
[1767843613734,1.22209199,137.65,137.58,1.35561515]
[1767843614345,1.21727072,137.64,137.56,1.35561515]
[1767843615239,1.21727072,137.64,137.57,7.90471515]
[1767843616639,7.76317072,137.64,137.57,7.90471515]
[1767843620554,1.1895234,137.62,137.57,1.35561515]
[1767843624354,1.17207215,137.61,137.55,7.90561515]
[1767843626349,1.17207215,137.61,137.52,8.60472431]
[1767843626350,1.80599964,137.59,137.52,1.35561515]
[1767843626557,1.16363031,137.58,137.52,1.35561515]
[1767843627353,7.71243031,137.58,137.52,1.35561515]
[1767843629859,1.16363031,137.58,137.53,1.35561515]
[1767843647475,9.43789828,137.6,137.54,1.35538272]
[1767843650480,7.63189864,137.6,137.54,1.35538272]
[1767843651177,1.08389864,137.6,137.54,7.90588272]
[1767843651581,1.08389864,137.6,137.55,1.35538272]
[1767843651876,7.61533965,137.62,137.55,1.35538272]
[1767843652782,7.61239184,137.61,137.55,1.35538272]
[1767843659384,1.04755407,137.64,137.56,1.35538272]
[1767843659586,1.04755407,137.66,137.57,1.35538272]
[1767843660389,7.59245407,137.66,137.58,1.35538272]
[1767843660798,7.59245407,137.66,137.59,1.35538272]
[1767843663389,7.57511247,137.65,137.59,1.35538272]
[1767843672507,1.007265,137.64,137.58,6.5485]
[1767843673203,1.007265,137.64,137.58,7.78808197]
[1767843677298,0.99575396,137.62,137.56,6.5492]
[1767843677499,0.99575396,137.62,137.55,1.23958197]
[1767843677697,0.99575396,137.62,137.52,85.94]
[1767843677902,0.99354264,137.58,137.52,85.94]
[1767843678708,0.99354264,137.58,137.51,7.79148197]
[1767843679009,101.8555,137.6,137.51,1.23958197]
[1767843679204,0.99136608,137.57,137.49,1.23958197]
[1767843680303,0.98920336,137.55,137.49,1.23958197]
[1767843680503,0.98920336,137.58,137.49,1.23958197]
[1767843681615,0.98920336,137.58,137.51,7.79138197]
[1767843682403,0.98496464,137.6,137.53,1.23958197]
[1767843683610,0.98496464,137.6,137.54,1.23958197]
[1767843687615,0.97472507,137.59,137.52,1.23958197]
[1767843688704,0.97472507,137.59,137.53,1.23958197]
[1767843690022,0.96887595,137.61,137.54,1.23958197]
[1767843691015,7.51627595,137.61,137.54,1.23958197]
[1767843692418,0.96250103,137.6,137.54,1.23958197]
[1767843694320,7.51030103,137.6,137.54,1.23958197]
[1767843699125,7.51030103,137.6,137.48,130.57715111]
[1767843699126,0.94999719,137.57,137.51,1.22544088]
[1767843699315,0.94999719,137.57,137.47,1.22544088]
[1767843700423,7.49829035,137.55,137.48,7.77884088]
[1767843704523,0.94117858,137.54,137.48,1.22544088]
[1767843704916,7.49177858,137.54,137.48,1.22544088]
[1767843708428,6.5511,137.53,137.48,1.22544088]
[1767843716935,7.47160031,137.53,137.48,1.22544088]
[1767843721131,7.4662378,137.52,137.45,87.18544088]
[1767843721334,0.9147378,137.51,137.41,3.03341954]
[1767843721630,0.9147378,137.51,137.42,1.22544088]
[1767843722034,0.91313896,137.5,137.44,6.5552]
[1767843723441,0.91313896,137.5,137.43,1.25497258]
[1767843723839,7.46573896,137.5,137.43,1.25497258]
[1767843724537,0.91039843,137.49,137.43,1.25497258]
[1767843724739,0.91039843,137.48,137.41,89.04295124]
[1767843725833,0.90773147,137.47,137.41,1.25497258]
[1767843726844,0.90642171,137.46,137.41,1.25497258]
[1767843727150,0.90642171,137.46,137.39,89.06295124]
[1767843727337,0.90642171,137.46,137.39,1.25497258]
[1767843727548,0.85565588,137.45,137.37,3.06295124]
[1767843727838,0.85565588,137.45,137.37,1.25497258]
[1767843728041,0.85448464,137.43,137.36,6.5588]
[1767843728243,0.85448464,137.43,137.35,1.25497258]
[1767843729145,0.85448464,137.43,137.34,86.0]
[1767843729346,0.85448464,137.43,137.34,87.28819309]
[1767843729547,0.85381636,137.42,137.34,93.84799309]
[1767843731339,1.80797866,137.43,137.34,86.0]
[1767843731340,0.85154197,137.41,137.34,86.0]
[1767843731542,0.85154197,137.41,137.32,9.65697175]
[1767843731940,0.85043114,137.38,137.3,7.84999309]
[1767843733039,0.85043114,137.38,137.3,1.28819309]
[1767843733040,0.8493253,137.37,137.3,1.28819309]
[1767843734840,7.4081253,137.37,137.3,1.28819309]
[1767843735346,0.84717989,137.36,137.3,1.28819309]
[1767843737644,0.84507109,137.38,137.31,1.28819309]
[1767843738645,2.65200459,137.41,137.32,1.28819309]
[1767843738849,0.84299023,137.44,137.34,1.28819309]
[1767843739647,0.84299023,137.43,137.35,7.84769309]
[1767843740447,0.84299023,137.43,137.36,1.28819309]
[1767843742647,0.83998218,137.42,137.34,1.28819309]
[1767843742850,0.83998218,137.42,137.33,6.5603]
[1767843744553,6.5569,137.41,137.33,6.5603]
[1767843744854,0.83803039,137.4,137.33,7.84849309]
[1767843746556,0.83803039,137.4,137.34,1.28819309]
[1767843747052,0.83519434,137.44,137.35,1.28819309]
[1767843747255,0.83519434,137.44,137.34,105.31187866]
[1767843747256,0.83519434,137.46,137.37,1.28819309]
[1767843748658,7.38979434,137.46,137.38,1.28819309]
[1767843749157,0.83334222,137.45,137.38,1.28819309]
[1767843749357,7.38824222,137.45,137.38,1.28819309]
[1767843751644,0.83153391,137.43,137.36,1.28819309]
[1767843752253,7.38743391,137.43,137.36,1.28819309]
[1767843755666,0.8271244,137.42,137.36,1.28819309]
[1767843756155,0.04657718,137.41,137.36,1.28819309]
[1767843757166,0.87203265,137.41,137.35,86.08]
[1767843757374,0.87203265,137.41,137.34,3.01945398]
[1767843757574,0.87203265,137.41,137.34,1.21147532]
[1767843757760,7.42893265,137.41,137.34,1.21147532]
[1767843762573,0.82077846,137.39,137.32,87.27147532]
[1767843763071,0.82077846,137.39,137.32,1.21147532]
[1767843763577,7.37857846,137.39,137.32,1.21147532]
[1767843763977,0.81880256,137.38,137.32,1.21147532]
[1767843766783,0.81880256,137.38,137.32,7.77247532]
[1767843767488,7.37710256,137.38,137.32,1.21147532]
[1767843767784,0.81880256,137.38,137.32,1.21147532]
[1767843768586,0.81880256,137.38,137.32,7.77247532]
[1767843774388,0.80959455,137.34,137.26,23.07147532]
[1767843774582,0.80959455,137.34,137.26,1.21147532]
[1767843775381,0.80872906,137.33,137.26,1.21147532]
[1767843778189,7.36972906,137.33,137.26,1.21147532]
[1767843778491,0.80872906,137.33,137.23,1.21147532]
[1767843779584,0.80538432,137.31,137.23,1.21147532]
[1767843780686,7.36708432,137.31,137.23,1.21147532]
[1767843781094,0.80377584,137.3,137.23,1.21147532]
[1767843782393,7.36597584,137.3,137.23,1.21147532]
[1767843786199,5.46010723,137.29,137.23,1.21147532]
[1767843786498,7.36597584,137.3,137.23,1.21147532]
[1767843786701,5.45802632,137.29,137.23,1.21147532]
[1767843786998,7.36597584,137.3,137.23,1.21147532]
[1767843787203,5.45914521,137.29,137.23,1.21147532]
[1767843787388,7.36597584,137.3,137.23,1.21147532]
[1767843787589,5.45694448,137.29,137.23,1.21147532]
[1767843787791,7.36597584,137.3,137.23,1.21147532]
[1767843787990,5.45441971,137.29,137.23,1.21147532]
[1767843788193,7.36597584,137.3,137.23,1.21147532]
[1767843788495,5.45326953,137.29,137.23,1.21147532]
[1767843788695,7.36597584,137.3,137.23,1.21147532]
[1767843788994,5.45211781,137.29,137.23,1.21147532]
[1767843789194,7.36597584,137.3,137.23,1.21147532]
[1767843789394,5.45212995,137.29,137.23,1.21147532]
[1767843789699,7.36597584,137.3,137.23,1.21147532]
[1767843789898,5.44311726,137.29,137.23,1.21147532]
[1767843790100,7.36597584,137.3,137.23,1.21147532]
[1767843790303,5.44194728,137.29,137.23,1.21147532]
[1767843790491,7.36597584,137.3,137.23,1.21147532]
[1767843790797,5.44061146,137.29,137.23,1.21147532]
[1767843790993,0.79568786,137.29,137.23,1.21147532]
[1767843792494,6.5622,137.3,137.23,1.21147532]
[1767843792695,7.35718903,137.3,137.23,1.21147532]
[1767843794601,6.5627,137.29,137.23,1.21147532]
[1767843795707,6.562,137.31,137.24,1.23259427]
[1767843796200,0.79228895,137.3,137.24,1.23259427]
[1767843797498,7.35253279,137.33,137.25,6.5643]
[1767843797804,5.43842989,137.32,137.26,1.23259427]
[1767843798104,7.35253279,137.33,137.26,1.23259427]
[1767843798302,5.43790654,137.32,137.26,1.23259427]
[1767843798503,7.35253279,137.33,137.26,1.23259427]
[1767843798704,5.43940895,137.32,137.26,1.23259427]
[1767843798902,7.35253279,137.33,137.26,1.23259427]
[1767843799203,5.4393882,137.32,137.26,1.23259427]
[1767843799402,5.4393882,137.31,137.26,1.23259427]
[1767843799603,7.35253279,137.33,137.26,1.23259427]
[1767843799903,5.44059226,137.32,137.26,1.23259427]
[1767843800093,5.44059226,137.31,137.26,1.23259427]
[1767843800294,7.35253279,137.33,137.26,1.23259427]
[1767843800495,5.44371511,137.32,137.26,1.23259427]
[1767843800698,5.44371511,137.31,137.26,1.23259427]
[1767843800891,7.35253279,137.33,137.26,1.23259427]
[1767843801106,5.44404365,137.32,137.26,1.23259427]
[1767843801308,5.44404365,137.31,137.26,1.23259427]
[1767843801505,7.35253279,137.33,137.26,1.23259427]
[1767843801805,5.44624496,137.32,137.26,1.23259427]
[1767843802001,5.44624496,137.31,137.26,1.23259427]
[1767843802306,6.5611,137.32,137.26,1.23259427]
[1767843802507,5.44807866,137.31,137.26,1.23259427]
[1767843802703,7.34954247,137.32,137.26,1.23259427]
[1767843802906,5.44807866,137.31,137.26,1.23259427]
[1767843803106,7.34954247,137.32,137.26,1.23259427]
[1767843803308,5.44807866,137.31,137.26,1.23259427]
[1767843803502,7.34954247,137.32,137.26,1.23259427]
[1767843803699,5.44741037,137.31,137.26,1.23259427]
[1767843803900,7.34954247,137.32,137.26,1.23259427]
[1767843804108,5.44519515,137.31,137.26,1.23259427]
[1767843804307,7.34954247,137.32,137.26,1.23259427]
[1767843804508,5.447959,137.31,137.26,1.23259427]
[1767843804703,0.78662093,137.29,137.23,1.23259427]
[1767843805807,5.44943917,137.28,137.23,1.23259427]
[1767843806107,0.78662093,137.29,137.23,1.23259427]
[1767843806301,5.44944614,137.28,137.23,1.23259427]
[1767843806503,0.78662093,137.29,137.23,1.23259427]
[1767843806697,12.01320798,137.28,137.23,1.23259427]
[1767843806900,6.563,137.28,137.23,1.23259427]
[1767843807103,7.34844149,137.28,137.21,1.23259427]
[1767843807409,12.80097676,137.27,137.21,1.23259427]
[1767843807608,5.45208738,137.26,137.21,1.23259427]
[1767843807911,0.78544149,137.27,137.21,1.23259427]
[1767843808212,5.45208405,137.26,137.21,1.23259427]
[1767843808409,0.78544149,137.27,137.21,1.23259427]
[1767843808605,0.78486243,137.25,137.19,1.23259427]
[1767843808814,5.45217131,137.24,137.19,1.23259427]
[1767843809015,0.78486243,137.25,137.19,1.23259427]
[1767843809016,12.01902513,137.23,137.19,1.23259427]
[1767843809309,12.01902513,137.23,137.16,92.7085]
[1767843809310,6.5654,137.23,137.17,1.23259427]
[1767843810219,7.34966243,137.25,137.18,1.23259427]
[1767843810510,5.44978744,137.24,137.18,1.23259427]
[1767843810710,0.78373497,137.28,137.18,1.23259427]
[1767843810910,188.2275,137.29,137.18,1.23259427]
[1767843810911,6.23462647,137.27,137.18,1.23259427]
[1767843811113,5.45144385,137.26,137.18,1.23259427]
[1767843811312,5.45144385,137.25,137.18,1.23259427]
[1767843811507,0.78318262,137.27,137.18,1.23259427]
[1767843811713,12.01678734,137.26,137.19,7.79969427]
[1767843811915,5.45278734,137.25,137.19,7.79969427]
[1767843812109,6.564,137.26,137.19,7.79969427]
[1767843812414,5.45278734,137.25,137.19,7.79969427]
[1767843812617,6.564,137.26,137.19,7.79969427]
[1767843812912,5.45433729,137.25,137.19,7.79969427]
[1767843813117,6.564,137.26,137.19,7.79969427]
[1767843813318,5.45433375,137.25,137.19,7.79969427]
[1767843813517,6.564,137.26,137.19,7.79969427]
[1767843813718,12.02016512,137.25,137.19,1.23259427]
[1767843814011,6.23731471,137.24,137.17,1.23222474]
[1767843814210,0.78164959,137.24,137.17,1.23222474]
[1767843814409,6.23801819,137.23,137.15,1.23222474]
[1767843814607,6.23801819,137.22,137.15,1.23222474]
[1767843814908,5.4563686,137.21,137.15,1.23222474]
[1767843815307,0.83051527,137.22,137.15,1.23222474]
[1767843815509,5.45602479,137.21,137.15,1.23222474]
[1767843815709,7.39641527,137.22,137.15,1.23222474]
[1767843815910,5.45587089,137.21,137.15,1.23222474]
[1767843816111,7.39641527,137.22,137.15,1.23222474]
[1767843816420,5.4879746,137.21,137.15,1.23222474]
[1767843816620,5.4879746,137.2,137.15,1.23222474]
[1767843816823,7.39641527,137.22,137.15,1.23222474]
[1767843816824,7.34650975,137.21,137.15,1.23222474]
[1767843817023,6.26866969,137.2,137.13,1.23222474]
[1767843817218,0.78010975,137.2,137.13,1.23222474]
[1767843817418,0.05389374,137.19,137.13,1.23222474]
[1767843818223,0.05389374,137.19,137.14,7.80182474]
[1767843819218,0.05389374,137.19,137.14,1.23222474]
[1767843820935,0.77791051,137.23,137.16,1.23222474]
[1767843821231,5.48799776,137.22,137.16,1.23222474]
[1767843821432,5.48799776,137.21,137.16,1.23222474]
[1767843821634,0.77791051,137.23,137.16,1.23222474]
[1767843821837,5.48808431,137.22,137.16,1.23222474]
[1767843822133,5.48808431,137.21,137.18,0.05504371]
[1767843822434,0.77791051,137.23,137.18,0.05504371]
[1767843822624,0.77791051,137.23,137.12,1.23222474]
[1767843822625,0.87942881,137.21,137.12,1.23222474]
[1767843822820,5.48787479,137.2,137.12,1.23222474]
[1767843823026,5.48787479,137.19,137.12,1.23222474]
[1767843823228,6.26382143,137.18,137.12,1.23222474]
[1767843823435,0.77594664,137.18,137.12,1.23222474]
[1767843823728,0.77594664,137.18,137.1,1.23222474]
[1767843823933,5.48600904,137.17,137.1,1.23222474]
[1767843824138,0.05414466,137.16,137.1,1.23222474]
[1767843825229,6.2600012,137.15,137.07,1.23222474]
[1767843825432,0.77529166,137.15,137.07,1.23222474]
[1767843825735,5.48062586,137.14,137.07,1.23222474]
[1767843826039,0.77529166,137.15,137.07,1.23222474]
[1767843826340,0.05178013,137.12,137.07,1.23222474]
[1767843826630,0.05178013,137.12,137.02,87.41222474]
[1767843826631,0.82674515,137.12,137.02,87.41222474]
[1767843827024,0.77496502,137.12,137.02,87.41222474]
[1767843827422,0.04605895,137.08,137.02,87.41222474]
[1767843827626,0.04605895,137.08,137.02,93.98732474]
[1767843827822,0.04605895,137.08,137.03,1.23222474]
[1767843828037,0.77496502,137.12,137.03,1.23222474]
[1767843828224,0.77496502,137.12,137.04,1.23222474]
[1767843829343,7.38959538,137.15,137.07,0.04743033]
[1767843829534,12.84986188,137.14,137.07,0.04743033]
[1767843829734,0.04611105,137.09,137.07,0.04743033]
[1767843829935,0.04611105,137.09,137.05,1.23222474]
[1767843830140,0.82000203,137.13,137.05,1.23222474]
[1767843831642,0.81981233,137.12,137.05,1.23222474]
[1767843832040,0.81981233,137.12,137.03,7.80712474]
[1767843832236,0.81961114,137.2,137.1,1.23222474]
[1767843832541,0.81961114,137.2,137.04,4.29119302]
[1767843832542,0.81961114,137.16,137.08,1.23222474]
[1767843833643,6.5694,137.15,137.08,1.23222474]
[1767843833844,0.81961114,137.16,137.08,1.23222474]
[1767843835137,7.38871114,137.16,137.08,1.23222474]
[1767843835439,0.81961114,137.16,137.08,1.23222474]
[1767843836031,7.38812625,137.15,137.08,1.23222474]
[1767843838939,0.81827604,137.14,137.02,2.50181121]
[1767843839255,0.81827604,137.07,136.99,15.71406048]
[1767843839436,2.63617881,137.07,136.99,15.71406048]
[1767843839756,0.81827604,137.06,136.99,14.48183574]
[1767843839941,0.81809618,137.04,136.96,1.27007299]
[1767843840242,5.42997271,137.03,136.91,108.9439]
[1767843840445,1.81790277,137.01,136.93,1.23222474]
[1767843841048,0.05357839,136.98,136.89,104.19650277]
[1767843841240,0.05357839,136.98,136.89,88.05790277]
[1767843841745,104.11360277,137.01,136.89,86.24]
[1767843841936,108.8701,137.01,136.89,86.24]
[1767843842239,108.8701,137.01,136.89,1.81790277]
[1767843842240,1.81790277,137.01,136.89,1.81790277]
[1767843842637,195.1115,137.01,136.88,86.24]
[1767843843047,188.5356,137.01,136.89,1.15557872]
[1767843843249,188.5296,137.02,136.89,1.15557872]
[1767843843441,86.24,137.02,136.9,1.15557872]
[1767843843638,108.8736,137.01,136.93,0.0470128]
[1767843844040,86.24,137.02,136.9,1.15557872]
[1767843844249,188.5286,137.02,136.9,1.15557872]
[1767843844751,0.04962897,136.97,136.9,1.15557872]
[1767843844940,86.26,136.96,136.84,1.15557872]
[1767843845142,107.22353469,136.95,136.8,1.15557872]
[1767843845444,102.3139,136.99,136.84,103.57017872]
[1767843845445,4.88243469,136.98,136.84,103.57017872]
[1767843845647,86.28,136.97,136.85,1.15557872]
[1767843846248,195.1854,136.97,136.85,1.15557872]
[1767843846455,5.84109209,136.96,136.85,1.15557872]
[1767843846753,5.84109209,136.95,136.85,1.15557872]
[1767843846949,119.64122678,136.95,136.82,1.15557872]
[1767843847151,108.18989209,136.94,136.81,6.5852]
[1767843847457,102.3609,136.92,136.79,1.15557872]
[1767843847755,0.0504173,136.89,136.79,1.15557872]
[1767843848252,102.3781,136.9,136.79,1.15557872]
[1767843848453,107.26053469,136.9,136.79,1.15557872]
[1767843848654,0.05104675,136.85,136.77,14.70278845]
[1767843849153,0.05104675,136.85,136.77,15.85836717]
[1767843850058,22.30197633,136.9,136.83,1.15557872]
[1767843850349,22.30197633,136.9,136.79,1.15557872]
[1767843850754,86.32,136.89,136.79,1.15557872]
[1767843851851,188.7039,136.89,136.77,14.70278845]
[1767843852244,188.7039,136.89,136.77,15.85836717]
[1767843852446,102.4056,136.86,136.77,15.85836717]
[1767843852745,102.4151,136.85,136.77,5.77079789]